fUSD/lending_fUSD_20240318
["ID","MTS","AMOUNT","RATE_DAILY","PERIOD"]
[319427341,1710736242081,-934.4,0.00022733,2]
[319427342,1710736242091,-416.0,0.0002274,2]
[319427343,1710736242100,-156.86168119,0.0002285,2]
[319427344,1710736242109,-151.0,0.00022892,2]
[319427345,1710736242119,-150.0,0.0002292,2]
[319427346,1710736242128,-1026.0,0.00022959,2]
[319427347,1710736242137,-154.79533012,0.0002297,2]
[319427348,1710736242146,-306.0676328,0.00023,2]
[319427349,1710736242155,-500.0,0.00023,17]
[319427350,1710736242164,-1000.0,0.00023,2]
[319427351,1710736242174,-2000.0,0.00023,2]
[319427352,1710736242183,-200.0,0.00023,2]
[319427353,1710736242192,-950.0,0.00023,3]
[319427354,1710736242202,-389.391617,0.00023,2]
[319427355,1710736242211,-416.0,0.00023014,2]
[319427356,1710736242220,-416.0,0.00023014,2]
[319427357,1710736242229,-553.31365691,0.00023034,2]
[319427358,1710736242238,-175.63117228,0.00023073,2]
[319427359,1710736242247,-500.0,0.00023207,2]
[319427360,1710736242256,-150.0,0.00023216,2]
[319427361,1710736242265,-3002.38833553,0.0002322,30]
[319427362,1710736242274,-300.0,0.00023221,2]
[319427363,1710736242283,-249.86773179,0.00023224,2]
[319427364,1710736242292,-2000.0,0.0002323,2]
[319427365,1710736242301,-200.0,0.0002323,2]
[319427366,1710736242310,-261.763401,0.00023288,2]
[319427367,1710736242319,-155.0,0.00023288,2]
[319427368,1710736242328,-172.13497557,0.0002333,2]
[319427369,1710736242337,-376.98,0.00023361,2]
[319427370,1710736242346,-164.0,0.00023439,2]
[319427371,1710736242355,-2000.0,0.00023462,2]
[319427372,1710736242365,-200.0,0.00023462,2]
[319427373,1710736242374,-1006.74,0.00023465,2]
[319427374,1710736242383,-152.29531727,0.00023472,2]
[319427375,1710736242392,-1919.09106593,0.0002354,2]
[319427376,1710736242401,-206.0,0.0002369,2]
[319427377,1710736242411,-188.0,0.0002369,2]
[319427378,1710736242420,-250.0,0.0002369,2]
[319427379,1710736242430,-159.0,0.0002369,2]
[319427380,1710736242439,-159.612,0.0002369,2]
[319427381,1710736242448,-240.608,0.0002369,2]
[319427382,1710736242457,-250.0,0.0002369,2]
[319427383,1710736242466,-165.084,0.0002369,2]
[319427384,1710736242475,-150.487,0.0002369,2]
[319427385,1710736242484,-150.134,0.0002369,2]
[319427386,1710736242493,-152.121,0.0002369,2]
[319427387,1710736242501,-151.2891834,0.00023693,2]
[319427388,1710736242510,-2000.0,0.00023697,2]
[319427389,1710736242519,-200.0,0.00023697,2]
[319427390,1710736242528,-150.0,0.0002372,2]
[319427391,1710736242537,-3000.0,0.000238,2]
[319427392,1710736242546,-300.0,0.00023835,2]
[319427393,1710736242555,-210.37285964,0.0002384,2]
[319427394,1710736242563,-3000.0,0.0002386,2]
[319427395,1710736242573,-2000.0,0.00023934,2]
[319427396,1710736242582,-200.0,0.00023934,2]
[319427397,1710736242590,-571.92995992,0.00023955,2]
[319427398,1710736242599,-155.0,0.00024,2]
[319427399,1710736242608,-500.0,0.00024,24]
[319427400,1710736242618,-250000.0,0.00024,2]
[319427401,1710736242627,-500.0,0.00024013,2]
[319427402,1710736242636,-428.0,0.00024164,2]
[319427403,1710736242645,-416.0,0.00024164,2]
[319427404,1710736242654,-1026.0,0.00024167,2]
[319427405,1710736242663,-15001.06202449,0.000242,2]
[319427406,1710736242673,-150.0,0.00024225,2]
[319427407,1710736242681,-150.49823158,0.00024248,2]
[319427408,1710736242690,-369.0,0.00024329,2]
[319427409,1710736242701,-1000.23,0.00024369,2]
[319427410,1710736242710,-553.31365691,0.00024408,2]
[319427411,1710736242719,-285.0,0.00024444,2]
[319427412,1710736242732,-4517.0,0.00024444,2]
[319427413,1710736242741,-333.0,0.00024444,2]
[319427414,1710736242750,-1000.23,0.00024653,2]
[319427415,1710736242759,-150.0,0.00024657,2]
[319427416,1710736242769,-150.0,0.00024657,2]
[319427417,1710736242778,-150.0,0.00024657,2]
[319427418,1710736242787,-150.0,0.00024657,2]
[319427419,1710736242797,-150.0,0.00024657,2]
[319427420,1710736242806,-2224.42,0.00024658,10]
[319427421,1710736242816,-155.0,0.00024658,2]
[319427422,1710736242827,-487.68,0.00024663,120]
[319427423,1710736242837,-155.27838075,0.00024664,2]
[319427424,1710736242846,-154.79533012,0.00024684,2]
[319427425,1710736242855,-285.0,0.00024696,2]
[319427426,1710736242865,-4517.0,0.00024696,2]
[319427427,1710736242874,-333.0,0.00024696,2]
[319427428,1710736242883,-150.0,0.0002473,2]
[319427429,1710736242893,-934.4,0.000248,2]
[319427430,1710736242902,-533.0,0.000248,120]
[319427431,1710736242911,-500.0,0.00024819,7]
[319427432,1710736242920,-1006.74,0.0002493,2]
[319427433,1710736242929,-285.0,0.00024948,2]
[319427434,1710736242939,-4517.0,0.00024948,2]
[319427435,1710736242949,-333.0,0.00024948,2]
[319427436,1710736242958,-2000.0,0.00024999,2]
[319427437,1710736242967,-155.0,0.00025,2]
[319427438,1710736242976,-1018.42220439,0.00025,10]
[319427439,1710736242985,-155.0,0.00025,2]
[319427440,1710736242994,-16839.85737821,0.00025,2]
[319427441,1710736243003,-155.0,0.00025,2]
[319427442,1710736243013,-148362.43449162,0.00025,30]
[319427443,1710736243022,-500.0,0.00025,25]
[319427444,1710736243031,-12466.7,0.00025,3]
[319427445,1710736243040,-1151.78,0.00025,3]
[319427446,1710736243049,-2687.99,0.00025,3]
[319427447,1710736243058,-2687.99,0.00025,3]
[319427448,1710736243067,-2687.99,0.00025,3]
[319427449,1710736243076,-2687.99,0.00025,3]
[319427450,1710736243085,-2539.4,0.00025,3]
[319427451,1710736243095,-2687.99,0.00025,3]
[319427452,1710736243104,-152.85,0.00025,3]
[319427453,1710736243113,-2687.99,0.00025,3]
[319427454,1710736243122,-2687.99,0.00025,3]
[319427455,1710736243131,-2687.99,0.00025,3]
[319427456,1710736243230,-2687.99,0.00025,3]
[319427457,1710736243241,-2687.99,0.00025,3]
[319427458,1710736243250,-369015.75862505,0.00025,4]
[319427459,1710736243259,-260.60858286,0.00025,15]
[319427460,1710736243268,-150.0,0.00025,2]
[319427461,1710736243277,-150.0,0.00025,2]
[319427462,1710736243287,-1000.0,0.00025,3]
[319427463,1710736243297,-200.0,0.00025,2]
[319427464,1710736243307,-301.21,0.00025011,2]
[319427465,1710736243317,-416.0,0.00025131,2]
[319427466,1710736243327,-571.92995992,0.00025196,2]
[319427467,1710736243336,-285.0,0.000252,2]
[319427468,1710736243345,-723.60667627,0.000252,2]
[319427469,1710736243354,-4517.0,0.000252,2]
[319427470,1710736243363,-1058.20353391,0.000252,2]
[319427471,1710736243372,-333.0,0.000252,2]
[319427472,1710736243381,-150.0,0.00025234,2]
[319427473,1710736243390,-603.0,0.00025279,2]
[319427474,1710736243399,-278.0,0.00025279,2]
[319427475,1710736243408,-1264.0,0.00025279,2]
[319427476,1710736243417,-1250.0,0.00025279,2]
[319427477,1710736243427,-432.0,0.00025279,2]
[319427478,1710736243436,-2931.0,0.00025279,2]
[319427479,1710736243445,-800.0,0.00025279,2]
[319427480,1710736243458,-1136.0,0.00025279,2]
[319427481,1710736243468,-357.0,0.00025279,2]
[319427482,1710736243477,-1459.0,0.00025279,2]
[319427483,1710736243487,-2419.0,0.00025279,2]
[319427484,1710736243496,-1623.0,0.00025279,2]
[319427485,1710736243505,-213.0,0.00025279,2]
[319427486,1710736243514,-5669.0,0.00025279,2]
[319427487,1710736243524,-4762.0,0.00025279,2]
[319427488,1710736243533,-1378.0,0.00025279,2]
[319427489,1710736243543,-2561.0,0.00025279,2]
[319427490,1710736243554,-959.0,0.00025279,2]
[319427491,1710736243563,-42884.0,0.00025279,2]
[319427492,1710736243573,-457.0,0.00025279,2]
[319427493,1710736243583,-536.0,0.00025279,2]
[319427494,1710736243593,-1226.0,0.00025279,2]
[319427495,1710736243602,-1044.0,0.00025279,2]
[319427496,1710736243611,-154.79533013,0.00025315,2]
[319427497,1710736243621,-416.0,0.00025315,2]
[319427498,1710736243630,-1026.0,0.00025439,2]
[319427499,1710736243640,-285.0,0.00025452,2]
[319427500,1710736243650,-4517.0,0.00025452,2]
[319427501,1710736243659,-333.0,0.00025452,2]
[319427502,1710736243669,-151.45,0.00025456,2]
[319427503,1710736243678,-453.0,0.00025489,2]
[319427504,1710736243688,-500.0,0.00025624,7]
[319427505,1710736243698,-376.98,0.00025625,2]
[319427506,1710736243711,-285.0,0.00025704,2]
[319427507,1710736243721,-4517.0,0.00025704,2]
[319427508,1710736243730,-333.0,0.00025704,2]
[319427509,1710736243742,-150.0,0.00025739,2]
[319427510,1710736243751,-1000.0,0.00025752,2]
[319427511,1710736243760,-175.63117228,0.00025759,2]
[319427512,1710736243769,-553.31365691,0.00025781,2]
[319427513,1710736243781,-782.37233,0.000258,2]
[319427514,1710736243790,-883.760121,0.000258,2]
[319427515,1710736243800,-150.56366878,0.0002588,2]
[319427516,1710736243809,-249.86773179,0.00025945,2]
[319427517,1710736243820,-285.0,0.00025956,2]
[319427518,1710736243833,-4517.0,0.00025956,2]
[319427519,1710736243852,-333.0,0.00025956,2]
[319427520,1710736243867,-452.01870967,0.00026,2]
[319427521,1710736243886,-350.0,0.00026,27]
[319427522,1710736243901,-2000.0,0.00026,2]
[319427523,1710736243918,-637.4465022,0.00026,27]
[319427524,1710736243937,-14876.80908558,0.00026,5]
[319427525,1710736243952,-150.0,0.00026,2]
[319427526,1710736243972,-150.0,0.00026,2]
[319427527,1710736243987,-155.0,0.00026028,2]
[319427528,1710736244005,-1401.689,0.0002603,2]
[319427529,1710736244026,-416.0,0.00026098,2]
[319427530,1710736244041,-151.2891834,0.00026102,2]
[319427531,1710736244055,-172.13497557,0.00026164,2]
[319427532,1710736244073,-150.0,0.00026244,2]
[319427533,1710736244086,-164.81942837,0.00026264,2]
[319427534,1710736244101,-151.32494325,0.00026268,2]
[319427535,1710736244116,-1000.0,0.000263,2]
[319427536,1710736244130,-1006.74,0.00026395,2]
[319427537,1710736244145,-500.0,0.0002643,7]
[319427538,1710736244159,-571.92995992,0.00026437,2]
[319427539,1710736244173,-416.0,0.00026466,2]
[319427540,1710736244190,-3000.0,0.000266,2]
[319427541,1710736244207,-150.0,0.0002669,2]
[319427542,1710736244222,-150.0,0.0002669,2]
[319427543,1710736244237,-150.0,0.0002669,2]
[319427544,1710736244252,-150.0,0.0002669,2]
[319427545,1710736244267,-7259.0,0.000267,2]
[319427546,1710736244283,-558.0,0.00026705,2]
[319427547,1710736244298,-150.0,0.00026748,2]
[319427548,1710736244314,-1026.0,0.00026778,2]
[319427549,1710736244330,-1000.0,0.00026848,2]
[319427550,1710736244345,-190.0,0.00026849,2]
[319427551,1710736244359,-152.29531727,0.00026945,2]
[319427552,1710736244373,-151.2891834,0.00026993,2]
[319427553,1710736244389,-155.0,0.00027,2]
[319427554,1710736244404,-10000.0,0.00027,2]
[319427555,1710736244420,-146750.2871635,0.00027,2]
[319427556,1710736244434,-6226.96042844,0.00027,2]
[319427557,1710736244448,-350.0,0.00027,27]
[319427558,1710736244465,-600.0,0.00027,28]
[319427559,1710736244479,-17000.0,0.00027,3]
[319427560,1710736244493,-3029.81473406,0.00027,2]
[319427561,1710736244507,-150.0,0.00027,2]
[319427562,1710736244522,-200.0,0.00027,2]
[319427563,1710736244536,-1050.0,0.00027,3]
[319427564,1710736244551,-151.32494325,0.00027035,2]
[319427565,1710736244566,-500.0,0.0002705,120]
[319427566,1710736244580,-168.57848188,0.00027063,2]
[319427567,1710736244594,-416.0,0.00027064,2]
[319427568,1710736244608,-3410.69,0.00027123,2]
[319427569,1710736244624,-553.31365691,0.00027154,2]
[319427570,1710736244638,-1675.48924789,0.000272,30]
[319427571,1710736244652,-500.0,0.00027236,7]
[319427572,1710736244667,-150.0,0.00027253,2]
[319427573,1710736244680,-150.49823158,0.00027285,2]
[319427574,1710736244695,-14685.0,0.00027394,5]
[319427575,1710736244711,-1000.0,0.00027396,2]
[319427576,1710736244726,-510.0,0.00027397,120]
[319427577,1710736244742,-1107.1875,0.00027397,2]
[319427578,1710736244757,-300.0,0.00027397,5]
[319427579,1710736244773,-150.0,0.00027397,2]
[319427580,1710736244788,-1000.0,0.00027397,2]
[319427581,1710736244803,-1000.0,0.00027397,2]
[319427582,1710736244819,-1000.0,0.00027397,2]
[319427583,1710736244834,-1000.0,0.00027397,2]
[319427584,1710736244976,-1000.0,0.00027397,2]
[319427585,1710736244986,-1000.0,0.00027397,2]
[319427586,1710736244995,-1000.0,0.00027397,2]
[319427587,1710736245004,-1000.0,0.00027397,2]
[319427588,1710736245013,-1000.0,0.00027397,2]
[319427589,1710736245022,-1000.0,0.00027397,2]
[319427590,1710736245032,-1000.0,0.00027397,2]
[319427591,1710736245041,-1000.0,0.00027397,2]
[319427592,1710736245050,-1000.0,0.00027397,2]
[319427593,1710736245059,-1000.0,0.00027397,2]
[319427594,1710736245068,-1000.0,0.00027397,2]
[319427595,1710736245078,-1000.0,0.00027397,2]
[319427596,1710736245087,-1000.0,0.00027397,2]
[319427597,1710736245097,-1000.0,0.00027397,2]
[319427598,1710736245107,-1000.0,0.00027397,2]
[319427599,1710736245117,-1000.0,0.00027397,2]
[319427600,1710736245126,-1000.0,0.00027397,2]
[319427601,1710736245135,-1000.0,0.00027397,2]
[319427602,1710736245144,-1000.0,0.00027397,2]
[319427603,1710736245154,-1000.0,0.00027397,2]
[319427604,1710736245164,-1000.0,0.00027397,2]
[319427605,1710736245175,-1000.0,0.00027397,2]
[319427606,1710736245184,-1000.0,0.00027397,2]
[319427607,1710736245194,-1000.0,0.00027397,2]
[319427608,1710736245205,-942.0,0.00027397,2]
[319427609,1710736245215,-2224.42,0.00027397,10]
[319427610,1710736245225,-24002.56,0.00027397,2]
[319427611,1710736245235,-15684.1,0.00027397,2]
[319427612,1710736245246,-79393.74,0.00027397,2]
[319427613,1710736245257,-155.0,0.00027398,2]
[319427614,1710736245266,-200.0,0.000274,2]
[319427615,1710736245277,-10000.0,0.000274,2]
[319427616,1710736245286,-10000.0,0.000274,2]
[319427617,1710736245296,-1000.0,0.000274,2]
[319427618,1710736245305,-2000.0,0.000274,2]
[319427619,1710736245314,-311.2902352,0.000274,2]
[319427620,1710736245324,-732.60745713,0.000274,2]
[319427621,1710736245333,-2000.0,0.000274,2]
[319427622,1710736245342,-157.031811,0.00027498,3]
[319427623,1710736245351,-157.031811,0.00027498,4]
[319427624,1710736245361,-187.40370458,0.000275,2]
[319427625,1710736245370,-416.0,0.00027616,2]
[319427626,1710736245379,-152.29531727,0.00027657,2]
[319427627,1710736245388,-510.0,0.00027671,120]
[319427628,1710736245397,-571.92995992,0.00027678,2]
[319427629,1710736245407,-150.0,0.00027716,4]
[319427630,1710736245416,-150.0,0.00027758,2]
[319427631,1710736245425,-152.0,0.00027776,3]
[319427632,1710736245434,-157.031811,0.00027798,4]
[319427633,1710736245446,-157.031811,0.00027798,3]
[319427634,1710736245456,-1173.558496,0.000278,2]
[319427635,1710736245465,-1325.640182,0.000278,2]
[319427636,1710736245474,-155.961895,0.00027848,2]
[319427637,1710736245483,-174.661734,0.00027848,2]
[319427638,1710736245492,-4214.38775,0.00027848,2]
[319427639,1710736245501,-1412.483964,0.00027848,2]
[319427640,1710736245510,-3662.479414,0.00027848,2]
[319427641,1710736245519,-159.591622,0.00027848,2]
[319427642,1710736245529,-1006.74,0.0002786,2]
[319427643,1710736245537,-362.01412075,0.00027874,2]
[319427644,1710736245547,-376.98,0.00027888,2]
[319427645,1710736245555,-154.27068388,0.00027904,2]
[319427646,1710736245565,-168.32211851,0.00027907,2]
[319427647,1710736245573,-1000.0,0.00027944,2]
[319427648,1710736245582,-510.0,0.00027945,120]
[319427649,1710736245592,-300.0,0.00027945,5]
[319427650,1710736245601,-150.0,0.00027945,2]
[319427651,1710736245610,-190.0,0.00027945,2]
[319427652,1710736245619,-1000.0,0.00027945,2]
[319427653,1710736245628,-686.0,0.00027979,2]
[319427654,1710736245637,-1737.48981025,0.00028,30]
[319427655,1710736245646,-155.0,0.00028,2]
[319427656,1710736245656,-904.7878744,0.00028,3]
[319427657,1710736245665,-350.0,0.00028,29]
[319427658,1710736245675,-600.0,0.00028,29]
[319427659,1710736245684,-284.5,0.00028,2]
[319427660,1710736245693,-24404.78582494,0.00028,2]
[319427661,1710736245703,-488.0957165,0.00028,2]
[319427662,1710736245712,-6345.53843694,0.00028,60]
[319427663,1710736245721,-400000.0,0.00028,4]
[319427664,1710736245731,-359.0,0.00028,5]
[319427665,1710736245744,-416.0,0.00028031,2]
[319427666,1710736245753,-500.0,0.00028042,7]
[319427667,1710736245762,-169.49172464,0.00028115,2]
[319427668,1710736245772,-1026.0,0.00028187,5]
[319427669,1710736245782,-155.961895,0.00028197,2]
[319427670,1710736245790,-4214.38775,0.00028197,2]
[319427671,1710736245799,-1412.483964,0.00028197,2]
[319427672,1710736245809,-3662.479414,0.00028197,2]
[319427673,1710736245819,-157.031811,0.00028198,4]
[319427674,1710736245828,-157.031811,0.00028198,3]
[319427675,1710736245837,-510.0,0.00028219,120]
[319427676,1710736245846,-151.32494327,0.00028254,2]
[319427677,1710736245856,-150.0,0.00028262,2]
[319427678,1710736245865,-603.0,0.00028279,2]
[319427679,1710736245874,-1264.0,0.00028279,2]
[319427680,1710736245884,-278.0,0.00028279,2]
[319427681,1710736245893,-1223.634,0.00028279,2]
[319427682,1710736245903,-432.0,0.00028279,2]
[319427683,1710736245912,-2931.0,0.00028279,2]
[319427684,1710736245922,-800.0,0.00028279,2]
[319427685,1710736245931,-1136.0,0.00028279,2]
[319427686,1710736245940,-357.0,0.00028279,2]
[319427687,1710736245949,-1459.0,0.00028279,2]
[319427688,1710736245959,-2419.0,0.00028279,2]
[319427689,1710736245968,-1623.0,0.00028279,2]
[319427690,1710736245977,-213.0,0.00028279,2]
[319427691,1710736245987,-5669.0,0.00028279,2]
[319427692,1710736245996,-4762.0,0.00028279,2]
[319427693,1710736246005,-1378.0,0.00028279,2]
[319427694,1710736246014,-2561.0,0.00028279,2]
[319427695,1710736246023,-959.0,0.00028279,2]
[319427696,1710736246032,-37774.61,0.00028279,2]
[319427697,1710736246041,-457.0,0.00028279,2]
[319427698,1710736246050,-536.0,0.00028279,2]
[319427699,1710736246059,-1226.0,0.00028279,2]
[319427701,1710736246068,-1044.0,0.00028279,2]
[319427702,1710736246077,-17924.63684605,0.000284,2]
[319427703,1710736246086,-500.0,0.000284,120]
[319427704,1710736246095,-175.63117228,0.00028445,4]
[319427705,1710736246105,-151.2891834,0.0002845,2]
[319427706,1710736246114,-152.29531727,0.00028489,2]
[319427707,1710736246123,-1000.0,0.00028492,2]
[319427708,1710736246132,-510.0,0.00028493,120]
[319427709,1710736246141,-300.0,0.00028493,5]
[319427710,1710736246150,-150.0,0.00028493,2]
[319427711,1710736246159,-157.031811,0.00028498,4]
[319427712,1710736246168,-157.031811,0.00028498,3]
[319427714,1710736246177,-6501.23737486,0.000285,120]
[319427715,1710736246186,-2006.57851011,0.000285,2]
[319427717,1710736246195,-3000.0,0.000285,2]
[319427719,1710736246205,-50923.0,0.000285,2]
[319427721,1710736246215,-192.0,0.00028511,5]
[319427723,1710736246224,-553.31365691,0.00028527,2]
[319427725,1710736246233,-4328.23083353,0.00028537,3]
[319427727,1710736246242,-155.961895,0.00028545,2]
[319427729,1710736246252,-4214.38775,0.00028545,2]
[319427731,1710736246261,-1412.483964,0.00028545,2]
[319427734,1710736246271,-3662.479414,0.00028545,2]
[319427736,1710736246279,-151.0,0.00028615,2]
[319427738,1710736246289,-249.86773179,0.00028667,2]
[319427739,1710736246299,-150.0,0.0002868,2]
[319427740,1710736246308,-337.71894161,0.000287,3]
[319427741,1710736246317,-542769.88459147,0.000287,2]
[319427742,1710736246326,-871016.51073203,0.000287,2]
[319427743,1710736246335,-510.0,0.00028767,120]
[319427744,1710736246343,-2214.375,0.00028767,2]
[319427745,1710736246352,-150.0,0.00028767,2]
[319427746,1710736246362,-155.0,0.00028768,2]
[319427747,1710736246371,-152.0,0.00028778,4]
[319427748,1710736246385,-157.031811,0.00028798,4]
[319427749,1710736246394,-157.031811,0.00028798,3]
[319427750,1710736246403,-1564.744661,0.000288,2]
[319427751,1710736246412,-1767.520243,0.000288,2]
[319427752,1710736246421,-20000.0,0.000288,3]
[319427753,1710736246431,-14330.34,0.000288,4]
[319427754,1710736246440,-7234.71,0.000288,2]
[319427755,1710736246449,-7234.71,0.000288,2]
[319427756,1710736246459,-7234.71,0.000288,2]
[319427757,1710736246468,-1006.74,0.000288,2]
[319427758,1710736246477,-317.76,0.000288,2]
[319427759,1710736246486,-500.0,0.00028848,7]
[319427760,1710736246496,-400.88552146,0.0002887,2]
[319427761,1710736246505,-484.54670645,0.0002887,2]
[319427762,1710736246514,-102256.88774112,0.00028879,2]
[319427763,1710736246524,-299128.18217484,0.0002888,2]
[319427764,1710736246533,-35298.70926257,0.0002888,2]
[319427765,1710736246543,-1200.97223445,0.0002889,2]
[319427766,1710736246553,-155.961895,0.00028893,2]
[319427767,1710736246562,-4214.38775,0.00028893,2]
[319427768,1710736246571,-1412.483964,0.00028893,2]
[319427769,1710736246580,-3662.479414,0.00028893,2]
[319427770,1710736246589,-571.92995992,0.00028918,2]
[319427771,1710736246598,-416.0,0.00028997,2]
[319427772,1710736246608,-200.87961551,0.00029,2]
[319427773,1710736246617,-12024.78757837,0.00029,2]
[319427774,1710736246627,-1288.55816243,0.00029,30]
[319427775,1710736246636,-271052.75725851,0.00029,4]
[319427776,1710736246645,-1025.94290944,0.00029,2]
[319427777,1710736246654,-7315.72570843,0.00029,120]
[319427778,1710736246663,-350.0,0.00029,29]
[319427779,1710736246672,-600.0,0.00029,30]
[319427780,1710736246682,-3069.0,0.00029,2]
[319427781,1710736246691,-1100.0,0.00029,3]
[319427782,1710736246701,-1000.0,0.0002904,2]
[319427783,1710736246711,-510.0,0.00029041,120]
[319427784,1710736246720,-300.0,0.00029041,5]
[319427785,1710736246730,-150.0,0.00029041,2]
[319427786,1710736246742,-190.0,0.00029041,2]
[319427787,1710736246751,-151.2891834,0.00029129,2]
[319427788,1710736246760,-157.031811,0.00029198,4]
[319427789,1710736246770,-157.031811,0.00029198,3]
[319427790,1710736246779,-2188.06287764,0.000292,2]
[319427791,1710736246789,-155.961895,0.00029241,2]
[319427792,1710736246798,-4214.38775,0.00029241,2]
[319427793,1710736246807,-1412.483964,0.00029241,2]
[319427794,1710736246816,-3662.479414,0.00029241,2]
[319427795,1710736246826,-3000.0,0.000293,2]
[319427796,1710736246835,-844.0,0.00029313,2]
[319427797,1710736246845,-510.0,0.00029315,120]
[319427798,1710736246854,-1006.74,0.00029325,2]
[319427799,1710736246864,-157.031811,0.00029498,4]
[319427800,1710736246873,-157.031811,0.00029498,3]
[319427801,1710736246883,-1012.18107272,0.000295,3]
[319427802,1710736246998,-152.29531727,0.00029534,2]
[319427803,1710736247008,-1000.0,0.00029588,2]
[319427804,1710736247017,-510.0,0.00029589,120]
[319427805,1710736247027,-300.0,0.00029589,5]
[319427806,1710736247086,-150.0,0.00029589,2]
[319427807,1710736247097,-500.0,0.00029654,7]
[319427808,1710736247107,-1026.0,0.00029671,5]
[319427809,1710736247116,-156510.24669213,0.000297,4]
[319427810,1710736247126,-78400.22573424,0.0002975,2]
[319427811,1710736247135,-152.0,0.00029781,5]
[319427812,1710736247143,-1584.68699205,0.00029784,30]
[319427813,1710736247153,-500.0,0.00029788,4]
[319427814,1710736247162,-500.0,0.00029788,4]
[319427815,1710736247171,-500.0,0.00029788,4]
[319427816,1710736247180,-500.0,0.00029788,4]
[319427817,1710736247190,-500.0,0.00029788,4]
[319427818,1710736247198,-500.0,0.00029788,4]
[319427819,1710736247208,-500.0,0.00029788,4]
[319427820,1710736247217,-500.0,0.00029788,4]
[319427821,1710736247227,-500.0,0.00029788,4]
[319427822,1710736247236,-500.0,0.00029788,4]
[319427823,1710736247245,-500.0,0.00029788,4]
[319427824,1710736247254,-500.0,0.00029788,4]
[319427825,1710736247262,-500.0,0.00029788,4]
[319427826,1710736247272,-500.0,0.00029788,4]
[319427827,1710736247281,-500.0,0.00029788,4]
[319427828,1710736247290,-500.0,0.00029788,4]
[319427829,1710736247299,-500.0,0.00029788,4]
[319427830,1710736247309,-500.0,0.00029788,4]
[319427831,1710736247318,-500.0,0.00029788,4]
[319427832,1710736247328,-500.0,0.00029788,4]
[319427833,1710736247337,-500.0,0.00029788,4]
[319427834,1710736247346,-500.0,0.00029788,4]
[319427835,1710736247355,-291.0,0.00029788,4]
[319427836,1710736247364,-157.031811,0.00029798,4]
[319427837,1710736247375,-157.031811,0.00029798,3]
[319427838,1710736247384,-1955.930827,0.000298,2]
[319427839,1710736247394,-2209.400304,0.000298,2]
[319427840,1710736247403,-172.13497557,0.00029817,2]
[319427841,1710736247412,-156.38024853,0.00029827,2]
[319427842,1710736247422,-317.76,0.00029835,2]
[319427843,1710736247431,-510.0,0.00029863,120]
[319427844,1710736247440,-537.02571856,0.00029898,30]
[319427845,1710736247449,-3854.7,0.00029899,2]
[319427846,1710736247458,-4711.3,0.00029899,2]
[319427847,1710736247468,-298879.10648451,0.000299,3]
[319427848,1710736247477,-553.31365691,0.000299,2]
[319427849,1710736247486,-210.37285964,0.000299,2]
[319427850,1710736247495,-848.35443708,0.000299,2]
[319427851,1710736247504,-5656.4801127,0.00029979,2]
[319427852,1710736247513,-107694.0453006,0.00029979,2]
[319427853,1710736247523,-1752.2328968,0.00029979,2]
[319427854,1710736247532,-2177.9711253,0.00029979,2]